Cogmind - Beta 14 @@@ ROGUE MODE // 2024.10.07 @ 18:18:55 Player: KURIIRI Result: Self-destructed Performance ------------- Evolutions (5) 2500 Regions Visited (15) 3000 Robots Destroyed (290) 1450 Value Destroyed (10482) 10482 Prototype IDs (49) 980 Alien Tech Used (0) 0 Bonus (2261) 2261 TOTAL SCORE: 20673 Bonus ------- High Alert Combat Kills 764 Follower Combat Kills 277 Entered Garrisons 600 Used RIF Installer 1000 Aligned with FarCom 300 Friendly Fire -680 Cogmind --------- Core Integrity 695/1000 Matter 300/300 Energy 137/178 System Corruption 3% Temperature Danger (465) Movement Treading (91) Location -5/Garrison Parts ------- > --- POWER (2) -------- Neutrino-Fusion Core > --- PROPULSION (4) --- Treaded FPD-Titanium Exoskeleton > --- UTILITY (8) ------ Armored Scrap Engine Large Storage Unit Hacking Suite Improved System Shield Relay Coupler [Sentry] (5) > --- WEAPON (3) ------- Advanced Plasma Cannon Improved Datajack > --- INVENTORY (15) --- Cooled Deuterium Engine Improved Sensor Array Powered Armor Improved Thermal Defense Suite Force Field Improved System Shield Advanced Plasma Cannon Advanced Plasma Cannon Remote Datajack Peak State ------------ > --- POWER ------------ Enhanced Nuclear Core Neutrino-Fusion Core > --- PROPULSION ------- Improved Carbon-fiber Leg Flexi-carbon Leg Treaded FPD-Titanium Exoskeleton > --- UTILITY ---------- Armored Scrap Engine Improved Cooling System Large Storage Unit Powered Armor Force Field Hacking Suite Improved System Shield > --- WEAPON ----------- Gatling Laser Advanced Plasma Cannon Gatling Energy Plasma Construct/C > --- INVENTORY -------- Cooled Deuterium Engine Improved Sensor Array Improved Heavy Armor Plating Powered Armor Improved Thermal Defense Suite Force Field Improved System Shield Relay Coupler [Sentry] Advanced Plasma Cannon Advanced Plasma Cannon Advanced Plasma Cannon Heavy Missile Launcher Improved Datajack Remote Datajack [Rating: 96] Favorites ----------- Power Enhanced Nuclear Core Engine Cooled Deuterium Engine Power Core Enhanced Nuclear Core Propulsion VSS Leg Treads Heavy Treads Leg VSS Leg Wheel Compact Wheel Utility Powered Armor Device Improved Cooling System Storage Medium Storage Unit Processor Improved Salvage Targeting Computer Hackware Advanced Hacking Suite Protection Powered Armor Weapon Gatling Laser Energy Gun Gatling Laser Energy Cannon Advanced Plasma Cannon Ballistic Gun Assault Rifle Ballistic Cannon Magnetic Acceleration Cannon Launcher Heavy Missile Launcher Special Weapon Remote Datajack Impact Weapon Heavy Hammer Slashing Weapon Longsword +1 Special Melee Weapon Datajack Build | -11 -10 -10 -10 -9 -8 -8 -8 -8 -7 -7 -7 -7 -7 -5 -5 ------- Run | Yrd Mat Min Exi Min Mat Gar Mat Gar Fac Was Fac Sto Rec Fac Gar Slots Evolved 10 | . . . . . 4 . . . 2 . . . . 4 . Power 1 | . . . . . . . . . . . . . . 1 . Propulsion 2 | . . . . . 2 . . . . . . . . . . Utility 6 | . . . . . 2 . . . 1 . . . . 3 . Weapon 1 | . . . . . . . . . 1 . . . . . . Parts Attached 290 | 6 5 3 . . 32 22 29 22 51 19 33 34 11 18 5 Power 20 | 1 . 2 . . 3 1 4 . 6 . 1 1 . 1 . Engine 10 | 1 . 2 . . 2 . 2 . 2 . 1 . . . . Core 10 | . . . . . 1 1 2 . 4 . . 1 . 1 . Reactor . | . . . . . . . . . . . . . . . . Propulsion 49 | 2 . . . . 12 2 2 5 11 2 5 3 4 1 . Treads 5 | . . . . . 2 . . . . 2 . . 1 . . Leg 43 | 2 . . . . 9 2 2 5 11 . 5 3 3 1 . Wheel 1 | . . . . . 1 . . . . . . . . . . Hover . | . . . . . . . . . . . . . . . . Flight . | . . . . . . . . . . . . . . . . Utility 76 | 1 3 . . . 6 4 7 4 17 3 10 9 1 9 2 Device 19 | . 2 . . . . 1 1 . 2 1 2 5 1 4 . Storage 7 | 1 1 . . . . 1 . . 1 . 3 . . . . Processor 2 | . . . . . . 1 . . . . . 1 . . . Hackware 15 | . . . . . 1 . 3 2 3 . 1 1 . 3 1 Protection 33 | . . . . . 5 1 3 2 11 2 4 2 . 2 1 Artifact . | . . . . . . . . . . . . . . . . Weapon 145 | 2 2 1 . . 11 15 16 13 17 14 17 21 6 7 3 Energy Gun 45 | . . . . . 3 4 3 1 5 6 5 12 3 3 . Energy Cannon 35 | . . . . . 3 6 2 . 2 3 7 7 2 2 1 Ballistic Gun 10 | 2 1 1 . . 1 . . 2 1 . 2 . . . . Ballistic Cannon 14 | . 1 . . . . . 3 5 4 . . . . 1 . Launcher 12 | . . . . . 1 2 2 . . . 3 2 . 1 1 Special Weapon 3 | . . . . . . . . . 1 1 . . 1 . . Impact Weapon 5 | . . . . . . . . . 1 4 . . . . . Slashing Weapon 16 | . . . . . 3 3 5 2 3 . . . . . . Piercing Weapon . | . . . . . . . . . . . . . . . . Special Melee Weapon 5 | . . . . . . . 1 3 . . . . . . 1 Unidentified Prototypes 17 | . . . . . 2 . 2 . 5 . 1 5 1 1 . Corrupted Parts 1 | . . . . . . . . . . 1 . . . . . System Corruption 4 | . . . . . . . . . . 4 . . . . . Parts Lost 43 | . . 2 . . 3 1 6 5 11 2 2 . . 2 9 Power 5 | . . 1 . . . . 1 . 1 . . . . 1 1 Propulsion 14 | . . . . . 2 . 2 2 6 . . . . . 2 Utility 13 | . . . . . 1 1 1 1 3 1 1 . . 1 3 Weapon 11 | . . 1 . . . . 2 2 1 1 1 . . . 3 Highest Loss Streak 7 | . . 1 . . 3 1 4 3 3 1 2 . . 1 7 To Critical Strikes . | . . . . . . . . . . . . . . . . Average Slot Usage (%) 90 | . 99 90 100 100 87 99 97 90 92 82 86 97 81 84 62 Engine 4 | . 14 5 14 14 7 6 3 . . 7 6 2 . 1 . Core 4 | . . . . . 1 2 5 9 5 . . 4 7 7 3 Treads 2 | . . . . . 7 . . . . 4 9 . . 2 5 Leg 23 | . 28 28 28 28 23 36 35 31 24 20 11 29 26 12 6 Device 7 | . 13 14 14 14 7 1 1 . 5 1 5 8 11 15 6 Storage 8 | . 14 14 14 14 9 6 9 9 4 7 15 9 7 5 5 Hackware 7 | . . . . . 3 9 13 19 10 4 3 . 7 11 13 Protection 8 | . . . . . 9 13 5 5 14 11 8 12 2 3 4 Energy Gun 9 | . . . . . 1 8 7 . 9 17 15 16 13 10 1 Energy Cannon 3 | . . . . . 9 7 4 . 2 3 5 5 . 5 5 Ballistic Gun 1 | . 14 13 14 14 . . . 1 . . . . . . . Ballistic Cannon 3 | . 13 14 14 14 . . 3 8 6 . . . . . . Peak Build Rating 96 | 6 7 7 9 9 33 40 44 38 55 72 72 58 64 96 96 Average Rating 46 | 4 6 6 8 9 23 34 39 32 44 57 55 51 51 85 78 On Entrance 34 | . 6 7 7 9 9 33 40 35 34 51 72 46 51 60 96 Naked Turns . | . . . . . . . . . . . . . . . . Heaviest Build 78 | 12 19 21 19 19 38 38 36 35 54 78 78 74 56 74 73 Greatest Support 140 | 20 20 20 20 20 54 48 51 53 62 140 140 75 69 82 44 Greatest Overweight (x) 3 | . . 1 . . 2 2 . . 3 1 1 . 2 3 1 Average Overweight (x) . | . . . . . . . . . . . . . . . 1 Largest Inventory Capacity 15 | 8 10 10 10 10 10 10 10 10 10 8 15 15 15 15 15 Average Capacity 10 | 6 9 10 10 10 10 8 10 10 7 8 10 15 15 15 15 Most Carried 15 | 1 3 4 8 10 10 10 10 10 10 8 11 15 15 15 15 Average Carried 8 | . 2 3 6 9 9 8 9 7 7 7 8 13 12 11 11 Final Capacity 15 | 8 10 10 10 10 10 10 10 10 8 8 15 15 15 15 15 Final Carried 15 | 1 3 3 8 10 10 10 7 10 8 8 11 15 9 15 9 Scrap Engine Consumption 68 | . . . . . . . . . . . . . 21 39 8 Constructs Created 4 | . . . . . . . . . . . . . 1 3 . Constructs Modified 19 | . . . . . . . . . . . . . 3 15 1 Class Distribution -------------------- 31% | Mutant 14% | Tank 14% | Skirmisher 10% | Scavenger-Mutant 7% | Hacker-Tank 7% | Scavenger-Skirmisher 6% | Hacker-Mutant 4% | Hacker-Skirmisher Dominant Class ---------------- Mutant | -10/Materials Mutant | -10/Mines Mutant | -10/Exiles Mutant | -9/Mines Scavenger-Mutant | -8/Materials Mutant | -8/Garrison Hacker-Mutant | -8/Materials Scavenger-Mutant | -8/Garrison Mutant | -7/Factory Skirmisher | -7/Waste Skirmisher | -7/Factory Tank | -7/Storage Mutant | -7/Recycling Hacker-Tank | -5/Factory Hacker-Mutant | -5/Garrison Resources | -11 -10 -10 -10 -9 -8 -8 -8 -8 -7 -7 -7 -7 -7 -5 -5 ----------- Run | Yrd Mat Min Exi Min Mat Gar Mat Gar Fac Was Fac Sto Rec Fac Gar Matter Collected 5426 | 223 250 267 . 73 241 377 377 387 959 329 552 725 254 292 120 Remotely . | . . . . . . . . . . . . . . . . Salvage Created 12766 | . 286 250 . 49 843 683 1156 325 2131 1455 1251 1401 217 2265 454 Parts 479 | . 22 16 . 3 40 27 70 11 85 8 59 63 10 55 10 Haulers Intercepted 16 | . . . . . 1 . 2 . 3 . 4 4 . 2 . Recyclers Shooed 14 | . . . . . 1 . . . 4 . 3 3 . 3 . Parts Field Recycled . | . . . . . . . . . . . . . . . . Retrieved Matter . | . . . . . . . . . . . . . . . . Parts Self-Destructed . | . . . . . . . . . . . . . . . . Prevented . | . . . . . . . . . . . . . . . . Kills | -11 -10 -10 -10 -9 -8 -8 -8 -8 -7 -7 -7 -7 -7 -5 -5 ------- Run | Yrd Mat Min Exi Min Mat Gar Mat Gar Fac Was Fac Sto Rec Fac Gar Combat Hostiles Destroyed 196 | . 11 13 . 4 10 18 18 12 29 6 16 23 3 25 8 Melee 28 | . . . . . 6 3 5 6 8 . . . . . . Guns 67 | . 5 7 . 3 . 1 3 . 10 2 9 13 3 11 . Cannons 59 | . 6 6 . 1 1 9 6 6 10 1 1 2 . 5 5 AOE 27 | . . . . . 3 5 3 . . . 5 6 . 3 2 Classes Destroyed 20 | . 3 . . . 4 1 5 . 1 1 . 2 2 . 1 Worker 16 | . . . . . . . 4 . 1 . 4 4 . 3 . Builder 6 | . . . . . . . 1 . . . 3 1 . 1 . Tunneler 2 | . . . . . . . 1 . . . 1 . . . . Hauler 16 | . . . . . 1 . 2 . 3 . 4 4 . 2 . Recycler 26 | . . . . . 4 . . . 12 . 3 2 . 5 . Mechanic 1 | . . . . . . . . . . . . 1 . . . Operator 4 | . . . . . 1 . 2 . . . . 1 . . . Drone 1 | . . . . . . . . . . . . 1 . . . Watcher 21 | . 2 . . . 1 . 2 . 7 . 6 2 . 1 . Swarmer 45 | . 6 9 . 4 . 3 2 8 10 . . 3 . . . Grunt 89 | . 5 4 . . 8 13 9 5 11 . 9 9 . 13 3 Brawler 2 | . . . . . . 1 . . . . 1 . . . . Sentry 25 | . . . . . 2 1 4 1 2 . 1 6 . 4 4 Specialist 1 | . . . . . . . 1 . . . . . . . . Hunter 11 | . . . . . . . 2 . 1 . 1 3 . 4 . Programmer 15 | . . . . . . . . . 5 . 4 2 . 4 . Behemoth 1 | . . . . . . . . . . . . . . . 1 Compactor 6 | . . . . . . . . . . 6 . . . . . Scientist 1 | . . . . . . . . . . . . . 1 . . Scrapper 3 | . . . . . . . . . . . . . 3 . . Best Kill Streak 8 | . 3 4 . 3 4 4 5 3 8 1 5 5 4 8 7 Combat Bots Only 7 | . 3 4 . 3 3 4 4 3 3 1 4 3 3 7 7 Max Kills in Single Turn 5 | . 1 1 . 1 3 2 2 1 2 1 3 5 1 3 1 Gunslinging . | . . . . . . . . . . . . . . . . Exploded 3 | . . . . . 3 2 1 . . . 2 3 . 3 1 Melee 1 | . . . . . 1 1 1 1 1 . . . . . . Uniques/NPCs Destroyed . | . . . . . . . . . . . . . . . . Combat | -11 -10 -10 -10 -9 -8 -8 -8 -8 -7 -7 -7 -7 -7 -5 -5 -------- Run | Yrd Mat Min Exi Min Mat Gar Mat Gar Fac Was Fac Sto Rec Fac Gar Hostile Shots Fired 1054 | . 33 35 . 11 52 55 80 56 196 1 67 205 7 136 120 Missed 335 | . 13 11 . 5 15 13 21 15 55 . 26 82 3 42 34 Damage Taken 11211 | . 213 222 . 53 581 548 1274 452 1901 574 697 1172 48 1378 2098 Core 1253 | . 50 45 . 8 42 66 183 132 199 63 86 74 . 108 197 Absorbed by Shields 693 | . . . . . . . . . . . . . 28 573 92 Redirected to Shielding 17 | . . . . . . . . . 17 . . . . . . Ignored by Resistances 60 | . . . . . . 60 . . . . . . . . . Regen/Repaired (Parts) 1247 | . . . . . . . 44 . . . 77 173 5 799 149 Core Remaining (%) 55 | 100 . . . 58 . . . 23 . . . . 39 . . Volleys Fired 694 | . 33 27 . 11 23 71 56 27 100 52 85 79 13 81 36 Largest 3 | . 2 2 . 2 2 2 2 2 3 3 3 3 3 3 1 Hottest 258 | . 55 55 . 55 138 153 153 106 240 240 258 240 240 257 98 Shots Fired 1334 | . 66 53 . 22 29 113 96 33 186 116 187 193 32 171 37 Gun 705 | . 33 26 . 11 4 37 46 7 79 97 114 129 26 95 1 Cannon 591 | . 33 27 . 11 23 69 44 26 106 18 67 61 . 74 32 Launcher 30 | . . . . . 2 7 6 . . . 6 3 . 2 4 Special 8 | . . . . . . . . . 1 1 . . 6 . . Kinetic 263 | . 66 53 . 22 . . 20 29 70 . 1 . . 2 . Thermal 979 | . . . . . 27 102 24 . 115 115 180 190 26 167 33 Explosive 30 | . . . . . 2 7 6 . . . 6 3 . 2 4 Electromagnetic 54 | . . . . . . 4 46 4 . . . . . . . Robot Hit Streak 25 | . 13 6 . 3 7 11 8 7 18 24 9 13 7 25 11 Robot Miss Streak 9 | . 4 3 . 2 3 4 5 7 7 5 9 9 4 5 3 Penetration Max . | . . . . . . . . . . . . . . . . Secondary Targets 5 | . . . . . . . . . 1 1 . 1 1 1 . Max Gunslinging Chain 1 | . . . . . . . . . 1 1 . 1 1 1 . Shots Hit Robots 944 | . 40 25 . 8 43 55 87 33 145 95 99 129 23 132 30 Core Hits 612 | . 18 16 . 4 18 30 53 31 84 24 76 90 12 126 30 Critical Kills 5 | . . . . . . . 1 . . 3 . . . 1 . Critical Parts Destroyed . | . . . . . . . . . . . . . . . . Critical Strikes 16 | . 1 1 . 2 2 1 2 . 1 5 . . . 1 . Burn 3 | . . . . . . . . . 1 2 . . . . . Meltdown 5 | . . . . . . . 1 . . 3 . . . 1 . Blast 4 | . 1 1 . 2 . . . . . . . . . . . Sever 4 | . . . . . 2 1 1 . . . . . . . . Melee Attacks 194 | . . . . . 30 11 28 55 59 6 . . . . 5 Impact 24 | . . . . . . . . . 18 6 . . . . . Slashing 157 | . . . . . 30 11 25 50 41 . . . . . . Piercing . | . . . . . . . . . . . . . . . . Sneak Attacks 16 | . . . . . 4 . 3 . 8 . . . . . 1 Combat Hostiles 1 | . . . . . . . . . . . . . . . 1 Follow-up Attacks . | . . . . . . . . . . . . . . . . Damage Inflicted 28301 | . 616 527 . 177 1973 1683 2745 851 4739 2288 3564 3729 390 3785 1234 Guns 11214 | . 294 197 . 67 52 233 401 36 1457 1926 1727 2416 372 2005 31 Cannons 8132 | . 322 205 . 97 275 879 830 414 1337 362 650 759 . 1265 737 Explosions 3952 | . . 116 . . 227 359 636 . . . 1106 538 . 504 466 Melee 4846 | . . . . . 1416 212 874 401 1943 . . . . . . Ramming 157 | . . 9 . 13 3 . 4 . 2 . 81 16 18 11 . Kinetic 3040 | . 616 402 . 164 . . 326 414 1085 . 5 . . 28 . Thermal 16392 | . . 116 . . 327 1112 557 . 1709 2288 2688 3175 372 3280 768 Explosive 3429 | . . . . . 227 359 583 . . . 790 538 . 466 466 Electromagnetic 437 | . . . . . . . 401 36 . . . . . . . Impact . | . . . . . . . . . . . . . . . . Slashing 4846 | . . . . . 1416 212 874 401 1943 . . . . . . Piercing . | . . . . . . . . . . . . . . . . Highest Corruption 46 | . . . . . . . 1 1 2 43 44 46 46 5 3 Average Corruption 20 | . . . . . . . 1 1 1 30 41 43 46 2 3 Corruption Purged 11 | . . . . . . . . . 1 . 5 . . 5 . Corruption Blocked . | . . . . . . . . . . . . . . . . Effects 424 | . . . . . . . 6 7 23 44 161 98 63 15 7 Message Errors 97 | . . . . . . . 1 2 5 7 35 20 19 6 2 Matter Fused 107 | . . . . . . . 1 . 9 13 49 18 14 2 1 Heat Flow Errors 36 | . . . . . . . . 1 1 1 16 9 5 2 1 Energy Discharges 43 | . . . . . . . 1 1 3 6 10 12 7 2 1 Parts Rejected 4 | . . . . . . . . . . 1 . 1 1 1 . Parts Fused 5 | . . . . . . . 1 1 1 . 1 1 . . . Data Loss (minor) 38 | . . . . . . . 1 1 2 6 15 7 6 . . Data Loss (major) 15 | . . . . . . . . . . 2 7 4 1 . 1 Misfires 24 | . . . . . . . 1 1 1 1 8 4 6 1 1 Alerts 8 | . . . . . . . . . 1 . 3 2 1 1 . Misdirections 14 | . . . . . . . . . . 2 7 3 2 . . Weapon Failures 33 | . . . . . . . . . . 5 10 17 1 . . Overload Shots 3 | . . . . . . . . . 2 1 . . . . . Overflow Damage 965 | . . . . 2 250 3 184 90 336 . 65 27 . 8 . Projectiles 192 | . . . . 2 24 3 33 . 70 . 25 27 . 8 . Explosions 57 | . . . . . . . 17 . . . 40 . . . . Melee 716 | . . . . . 226 . 134 90 266 . . . . . . Knockbacks 53 | . 10 5 . 1 . . 8 13 16 . . . . . . Impact 1 | . . 1 . . . . . . . . . . . . . Kinetic 49 | . 9 3 . 1 . . 8 13 15 . . . . . . Secondary 3 | . 1 1 . . . . . . 1 . . . . . . Self-Inflicted Damage 365 | . . . . . . 21 31 . . . 65 . . 172 76 Shots 7 | . . . . . . 1 1 . . . 1 . . 2 2 Rammed 5 | . . . . . . . . . . . 4 . . 1 . Targets Rammed 17 | . 1 1 . 1 1 . 1 . 1 . 5 1 3 2 . Kicked 11 | . 1 1 . 1 1 . 1 . 1 . . 1 3 1 . Crushed 1 | . . . . . . . . . . . 1 . . . . Highest Temperature 498 | . 56 2 . . 234 466 422 126 402 498 483 445 252 240 465 Average Temperature 113 | . 41 2 . . 66 154 95 37 111 145 129 66 99 49 195 Received Heat Transfer 2763 | . 108 39 . . 306 369 225 90 396 . 147 417 42 209 415 Effects 29 | . . . . . 2 12 3 . 3 2 3 1 . . 3 Shutdowns 9 | . . . . . . 5 . . 1 1 . 1 . . 1 Energy Bleed 3 | . . . . . . . . . . 1 1 . . . 1 Interference 11 | . . . . . 2 4 3 . 1 . 1 . . . . Short Circuit 1 | . . . . . . 1 . . . . . . . . . Damage (minor) 3 | . . . . . . . . . 1 . 1 . . . 1 Damage (major) 2 | . . . . . . 2 . . . . . . . . . Siege Activations . | . . . . . . . . . . . . . . . . Robots Corrupted . | . . . . . . . . . . . . . . . . Combat Hostiles . | . . . . . . . . . . . . . . . . Parts Fried . | . . . . . . . . . . . . . . . . Impact Corruptions . | . . . . . . . . . . . . . . . . Robots Melted 18 | . . . . . . . 1 . 2 3 1 2 . 8 1 Combat Hostiles 15 | . . . . . . . 1 . 1 3 1 2 . 6 1 Parts Melted 86 | . . . . . 1 3 . . 6 6 6 18 2 41 3 Heat Transferred 33754 | . . 200 . . 518 1863 850 . 3436 4882 4785 6457 410 8810 1543 Parts Sabotaged . | . . . . . . . . . . . . . . . . Parts Stolen . | . . . . . . . . . . . . . . . . Parts Stripped . | . . . . . . . . . . . . . . . . Power Chain Reactions 1 | . . . . . . . 1 . . . . . . . . Alert | -11 -10 -10 -10 -9 -8 -8 -8 -8 -7 -7 -7 -7 -7 -5 -5 ------- Run | Yrd Mat Min Exi Min Mat Gar Mat Gar Fac Was Fac Sto Rec Fac Gar Peak Influence 936 | . 245 296 . 120 191 936 547 889 541 88 746 772 343 549 627 Initial 466 | . . 56 . . . 1 456 276 466 85 . 323 300 50 384 Average 299 | . 113 225 . 92 70 550 375 605 344 43 215 520 163 173 553 Maximum Alert Level 3 | . 1 1 . . . 3 2 3 2 . 3 3 1 2 2 Low Security (%) 36 | 100 76 13 . 100 100 18 . . 2 100 64 . 64 64 . Level 1 33 | . 23 86 . . . 14 58 16 69 . 6 20 35 30 12 Level 2 23 | . . . . . . 31 41 48 28 . 25 63 . 4 87 Level 3 6 | . . . . . . 34 . 35 . . 3 15 . . . Level 4 . | . . . . . . . . . . . . . . . . Level 5 . | . . . . . . . . . . . . . . . . High Security . | . . . . . . . . . . . . . . . . Max Security . | . . . . . . . . . . . . . . . . Squads Dispatched 55 | . 3 . . . 1 . 11 . 15 . 10 9 . 6 . Investigation 19 | . 2 . . . 1 . 5 . 6 . 4 . . 1 . Extermination 12 | . . . . . . . . . 5 . 3 2 . 2 . Reinforcement 18 | . 1 . . . . . 3 . 3 . 3 6 . 2 . Assault . | . . . . . . . . . . . . . . . . Garrison 6 | . . . . . . . 3 . 1 . . 1 . 1 . Intercept . | . . . . . . . . . . . . . . . . Searches Triggered . | . . . . . . . . . . . . . . . . Construction Impeded 4 | . . . . . . . . . 1 . 2 1 . . . Haulers Reinforced 7 | . . . . . . . . . 1 . 1 3 . 2 . Active Scanning Responses . | . . . . . . . . . . . . . . . . Cargo Convoy Interrupts . | . . . . . . . . . . . . . . . . Stealth | -11 -10 -10 -10 -9 -8 -8 -8 -8 -7 -7 -7 -7 -7 -5 -5 --------- Run | Yrd Mat Min Exi Min Mat Gar Mat Gar Fac Was Fac Sto Rec Fac Gar Distress Signals 13 | . . . . . 3 . 5 . 1 . . 3 1 . . Communications Jammed . | . . . . . . . . . . . . . . . . Distress Signals . | . . . . . . . . . . . . . . . . Times Spotted 301 | . 19 13 . 4 20 22 39 24 52 5 24 32 4 30 13 Peak Tracking Total 8 | . 3 4 . 3 4 4 7 7 6 2 4 3 4 6 8 Tactical Retreats 15 | . 2 . . 1 . 3 1 2 4 . 1 . . 1 . Traps | -11 -10 -10 -10 -9 -8 -8 -8 -8 -7 -7 -7 -7 -7 -5 -5 ------- Run | Yrd Mat Min Exi Min Mat Gar Mat Gar Fac Was Fac Sto Rec Fac Gar Traps Triggered 24 | . 2 . . . . 1 3 4 4 . 5 . . 3 2 Indirectly . | . . . . . . . . . . . . . . . . Trap Hack Attempts 32 | . . . . . . . . 32 . . . . . . . Triggered . | . . . . . . . . . . . . . . . . Disarmed . | . . . . . . . . . . . . . . . . Reprogrammed 4 | . . . . . . . . 4 . . . . . . . Reused 2 | . . . . . 1 1 . . . . . . . . . Traps Extracted . | . . . . . . . . . . . . . . . . Installed 2 | . . . . . 1 1 . . . . . . . . . Triggered 2 | . . . . . 1 1 . . . . . . . . . Most Traps Carried 3 | . . . . 3 3 1 . . . . . . . . . Machines | -11 -10 -10 -10 -9 -8 -8 -8 -8 -7 -7 -7 -7 -7 -5 -5 ---------- Run | Yrd Mat Min Exi Min Mat Gar Mat Gar Fac Was Fac Sto Rec Fac Gar Machines Disabled 51 | . 2 5 . 1 1 4 2 2 . . 19 8 1 6 . Max in Single Turn 5 | . 1 4 . 1 1 1 1 1 . . 5 2 . 5 . Garrison Access 8 | . . . . . . . . . 2 . 3 1 . 2 . Garrison Relay 4 | . . . . . . 2 . 2 . . . . . . . Machines Repaired . | . . . . . . . . . . . . . . . . Machines Dismantled . | . . . . . . . . . . . . . . . . Machines Sabotaged . | . . . . . . . . . . . . . . . . Overloaded Fab Kills . | . . . . . . . . . . . . . . . . Hacking | -11 -10 -10 -10 -9 -8 -8 -8 -8 -7 -7 -7 -7 -7 -5 -5 --------- Run | Yrd Mat Min Exi Min Mat Gar Mat Gar Fac Was Fac Sto Rec Fac Gar Machines Accessed 85 | . 5 . 1 . 6 3 10 3 15 . 13 11 9 8 1 Terminals 55 | . 5 . . . 5 3 7 3 9 . 7 7 5 3 1 Fabricators 3 | . . . . . . . . . 2 . 1 . . . . Repair Stations 6 | . . . . . . . 1 . . . 1 2 . 2 . Recycling Units 5 | . . . . . . . . . 1 . . 1 3 . . Scanalyzers 3 | . . . . . . . 1 . 1 . 1 . . . . Garrison Access 11 | . . . . . 1 . 1 . 2 . 3 1 . 3 . Total Hacks 220 | . 24 . 1 . 23 9 29 5 39 . 23 24 21 19 3 Successful 112 | . 12 . 1 . 10 3 18 3 22 . 10 11 8 13 1 Failed 107 | . 11 . . . 13 6 11 2 17 . 13 13 13 6 2 Catastrophic 25 | . 2 . . . 2 2 2 1 5 . 4 2 3 1 1 Database Lockouts 1 | . 1 . . . . . . . . . . . . . . Manual 99 | . 13 . 1 . 20 2 13 1 17 . 8 9 10 5 . Terminals 156 | . 24 . . . 22 9 19 5 27 . 16 13 12 6 3 Fabricators 7 | . . . . . . . . . 6 . 1 . . . . Repair Stations 23 | . . . . . . . 2 . . . 2 9 . 10 . Recycling Units 11 | . . . . . . . . . 3 . . 1 7 . . Scanalyzers 9 | . . . . . . . 7 . 1 . 1 . . . . Garrison Access 11 | . . . . . 1 . 1 . 2 . 3 1 . 3 . Terminal Hacks 51 | . 8 . 1 . 6 3 6 3 10 . 2 5 4 2 1 Robot Schematic 1 | . . . . . . . . . 1 . . . . . . Robot Analysis 6 | . 3 . . . . . 1 . 2 . . . . . . Prototype ID Bank 2 | . . . . . 1 . . . . . . . 1 . . Open Door 4 | . . . . . . . . . . . . 4 . . . Branch Access Points 4 | . 1 . . . 1 . . . 1 . 1 . . . . Emergency Access Points 2 | . . . . . . 1 . 1 . . . . . . . Terminal Index 2 | . . . . . 1 . . . . . . . . 1 . Unreport Threat 9 | . 1 . . . 2 . 2 . 4 . . . . . . Locate Traps 8 | . 3 . . . 1 . . . 1 . 1 1 . 1 . Recall Investigation 1 | . . . . . . . 1 . . . . . . . . Recall Reinforcements 1 | . . . . . . . 1 . . . . . . . . Registered Components 2 | . . . . . . . 1 . 1 . . . . . . Zone Layout 1 | . . . . . . . . . . . . . 1 . . Garrison Registry 2 | . . . . . . 1 . 1 . . . . . . . Patrol Navigation 1 | . . . . . . . . 1 . . . . . . . Security Stations 2 | . . . . . . 1 . . . . . . . . 1 Derelict Proto ID Bank 1 | . . . 1 . . . . . . . . . . . . Release Object 2 | . . . . . . . . . . . . . 2 . . Fabricator Hacks 4 | . . . . . . . . . 4 . . . . . . Load Schematic 2 | . . . . . . . . . 2 . . . . . . Build 2 | . . . . . . . . . 2 . . . . . . Repair Station Hacks 16 | . . . . . . . 2 . . . 2 5 . 7 . Scan Component 9 | . . . . . . . 1 . . . 1 3 . 4 . Repair 7 | . . . . . . . 1 . . . 1 2 . 3 . Recycling Unit Hacks 1 | . . . . . . . . . . . . . 1 . . Retrieve Components 1 | . . . . . . . . . . . . . 1 . . Scanalyzer 7 | . . . . . . . 7 . . . . . . . . Insert Component 3 | . . . . . . . 3 . . . . . . . . Analyze 4 | . . . . . . . 4 . . . . . . . . Garrison Access Hacks 11 | . . . . . 1 . 1 . 2 . 3 1 . 3 . Unlock Access 3 | . . . . . 1 . 1 . . . . . . 1 . Seal Access 8 | . . . . . . . . . 2 . 3 1 . 2 . Unauthorized Hacks 22 | . 4 . . . 3 . 2 . 6 . 3 . 3 1 . Terminals 18 | . 4 . . . 3 . 2 . 3 . 2 . 3 1 . Assimilate 2 | . . . . . . . 1 . 1 . . . . . . Botnet 14 | . 3 . . . 2 . 1 . 2 . 2 . 3 1 . Operators 2 | . 1 . . . 1 . . . . . . . . . . Fabricators . | . . . . . . . . . . . . . . . . Repair Stations . | . . . . . . . . . . . . . . . . Recycling Units 2 | . . . . . . . . . 2 . . . . . . Reject 1 | . . . . . . . . . 1 . . . . . . Mask 1 | . . . . . . . . . 1 . . . . . . Scanalyzers 2 | . . . . . . . . . 1 . 1 . . . . Extract 2 | . . . . . . . . . 1 . 1 . . . . Garrison Access . | . . . . . . . . . . . . . . . . Data Cores Recovered 2 | . . . . . 1 . . . . . . . . 1 . Used . | . . . . . . . . . . . . . . . . Hacking Detections 64 | . 4 . . . 5 3 8 2 11 . 9 9 6 6 1 Full Trace Events 20 | . 4 . . . 1 2 3 . 5 . 3 . 1 . 1 Feedback Events . | . . . . . . . . . . . . . . . . Feedback Blocked . | . . . . . . . . . . . . . . . . Robot Schematics Acquired 1 | . . . . . . . . . 1 . . . . . . Robots Built . | . . . . . . . . . . . . . . . . Authchips . | . . . . . . . . . . . . . . . . Time . | . . . . . . . . . . . . . . . . Total Robot Build Rating . | . . . . . . . . . . . . . . . . Part Schematics Acquired 7 | . . . . . . . 3 . 2 . 2 . . . . Parts Built 3 | . . . . . . . . . 3 . . . . . . Authchips . | . . . . . . . . . . . . . . . . Time 159 | . . . . . . . . . 159 . . . . . . Total Part Build Rating 18 | . . . . . . . . . 18 . . . . . . Parts Repaired 7 | . . . . . . . 1 . . . 1 2 . 3 . Time 266 | . . . . . . . 38 . . . 22 74 . 132 . Parts Recycled . | . . . . . . . . . . . . . . . . Recycled Matter . | . . . . . . . . . . . . . . . . Retrieved Matter . | . . . . . . . . . . . . . . . . Retrieved Components 2 | . . . . . . . . . . . . . 2 . . Parts Scanalyzed 3 | . . . . . . . 3 . . . . . . . . Part Schematics Acquired 3 | . . . . . . . 3 . . . . . . . . Parts Damaged . | . . . . . . . . . . . . . . . . Bothacking | -11 -10 -10 -10 -9 -8 -8 -8 -8 -7 -7 -7 -7 -7 -5 -5 ------------ Run | Yrd Mat Min Exi Min Mat Gar Mat Gar Fac Was Fac Sto Rec Fac Gar Used RIF Installer 2 | . . . . . . 1 . 1 . . . . . . . Watcher Feeds 1 | . . . . . . . . 1 . . . . . . . Robots Hacked 10 | . . . . . . . 2 4 1 1 . . . . 2 Non-combat 1 | . . . . . . . 1 . . . . . . . . Combat 9 | . . . . . . . 1 4 1 1 . . . . 2 Robot Hacks Applied 12 | . . . . . . . 3 5 1 1 . . . . 2 parse_system 2 | . . . . . . . . 1 . 1 . . . . . no_distress 1 | . . . . . . . 1 . . . . . . . . find_garrison 1 | . . . . . . . 1 . . . . . . . . reboot_system 1 | . . . . . . . . . . . . . . . 1 overwrite_iff 3 | . . . . . . . . 2 1 . . . . . . formatsys_high 4 | . . . . . . . 1 2 . . . . . . 1 Relay Couplers Released 16 | . . . . . . 10 . 6 . . . . . . . Machine Destruction 16 | . . . . . . 10 . 6 . . . . . . . Attached 5 | . . . . . . . 1 2 1 . . . . . 1 Fabnet Peak Effective % . | . . . . . . . . . . . . . . . . Robots Rewired 8 | . . . . . . . 2 3 . . . . 3 . . Allies Hacked 1 | . . . . . . . . . 1 . . . . . . Hacks Repelled . | . . . . . . . . . . . . . . . . Allies | -11 -10 -10 -10 -9 -8 -8 -8 -8 -7 -7 -7 -7 -7 -5 -5 -------- Run | Yrd Mat Min Exi Min Mat Gar Mat Gar Fac Was Fac Sto Rec Fac Gar Total Allies 20 | . . . . . . . 4 7 5 . . . 3 . 1 Largest Group 3 | . . . . . . . 2 3 3 . . . 3 1 1 Highest-Rated Group 93 | . . . . . . . 31 54 93 . . . 88 40 49 Highest-Rated Ally 49 | . . . . . . . 21 29 31 . . . 40 40 49 Total Orders 19 | . . . . . . . 11 3 1 . . 2 2 . . STAY 11 | . . . . . . . 6 2 1 . . 1 1 . . FOLLOW 7 | . . . . . . . 5 1 . . . . 1 . . EXPLORE 1 | . . . . . . . . . . . . 1 . . . Ally Attacks 77 | . . . . . . . 19 24 22 . . . 5 . 7 Total Damage 1545 | . . . . . . . 429 426 225 . . . 170 . 295 Kills 13 | . . . . . . . 6 5 2 . . . . . . Allies Corrupted . | . . . . . . . . . . . . . . . . Allies Melted 1 | . . . . . . . . . . . . . 1 . . Intel | -11 -10 -10 -10 -9 -8 -8 -8 -8 -7 -7 -7 -7 -7 -5 -5 ------- Run | Yrd Mat Min Exi Min Mat Gar Mat Gar Fac Was Fac Sto Rec Fac Gar Robot Analysis Total 6 | . 3 . . . . . 1 . 2 . . . . . . Derelict Logs Recovered 2 | . . 1 . 1 . . . . . . . . . . . Drone Launches 9 | . . . . . . . . . . . . 9 . . . Drone Recoveries 3 | . . . . . . . . . . . . 3 . . . Exploration | -11 -10 -10 -10 -9 -8 -8 -8 -8 -7 -7 -7 -7 -7 -5 -5 ------------- Run | Yrd Mat Min Exi Min Mat Gar Mat Gar Fac Was Fac Sto Rec Fac Gar Turns Passed 21011 | 53 928 746 299 436 920 1403 1206 1347 4523 766 2839 1469 1133 2644 299 Spaces Moved 11920 | 38 519 438 246 318 535 913 775 836 2457 345 1587 734 803 1256 120 Core 3 | 3 . . . . . . . . . . . . . . . Treads 1664 | . . . . . 151 . . . . 155 914 . . 324 120 Legs 10162 | 35 519 438 246 318 293 913 775 836 2457 190 673 734 803 932 . Wheels 91 | . . . . . 91 . . . . . . . . . . Hover . | . . . . . . . . . . . . . . . . Flight . | . . . . . . . . . . . . . . . . Fastest Speed 50 | 50 120 120 120 120 90 90 90 100 105 107 126 120 107 140 167 Average Speed 133 | 114 120 120 120 120 126 100 94 115 150 134 146 124 127 167 167 Slowest Speed 330 | 120 120 190 120 120 260 270 100 120 330 240 195 127 255 330 167 Overloaded Moves . | . . . . . . . . . . . . . . . . Propulsion Burnouts . | . . . . . . . . . . . . . . . . Robots Hopped . | . . . . . . . . . . . . . . . . Cave-ins Triggered 2 | . . . . . . . . . . 2 . . . . . Exploration Rate (%) 60 | 3 74 91 61 70 40 61 67 69 68 79 46 87 98 37 13 Regions Visited 15 Branch Regions 5 Pre-discovered Areas . | . . . . . . . . . . . . . . . . Known Exits Taken 5 | . 1 . . . 1 . 1 . . . 1 . . 1 . Unknown Exits Taken 6 | 1 . 1 1 1 . . . . . . . 1 1 . . Scrap Searched 3 | . . 2 . 1 . . . . . . . . . . . Spaces Dug 159 | . . . . . 4 3 8 28 31 10 19 1 . 54 1 Terrain Destroyed 533 | . . 27 . . 20 28 43 28 41 14 162 50 . 65 55 Melee 64 | . . . . . 1 3 8 28 18 6 . . . . . Projectile 106 | . . . . . 8 . 7 . 23 8 30 16 . 11 3 AOE 363 | . . 27 . . 11 25 28 . . . 132 34 . 54 52 Terrain Rammed . | . . . . . . . . . . . . . . . . Walls Destroyed . | . . . . . . . . . . . . . . . . Machines Disabled . | . . . . . . . . . . . . . . . . Actions | -11 -10 -10 -10 -9 -8 -8 -8 -8 -7 -7 -7 -7 -7 -5 -5 --------- Run | Yrd Mat Min Exi Min Mat Gar Mat Gar Fac Was Fac Sto Rec Fac Gar Total 15519 | 44 756 602 250 351 718 1271 1117 1130 3031 523 1924 1094 898 1629 181 Wait 2070 | . 196 131 . 16 65 220 215 111 309 94 198 227 31 245 12 Move 11904 | 37 518 437 245 317 534 911 774 834 2457 344 1586 733 802 1255 120 Hop . | . . . . . . . . . . . . . . . . Pick Up 86 | 1 2 2 5 4 8 12 1 6 17 . 8 6 1 13 . Fast Attach 117 | 6 2 1 . . 18 8 4 11 26 6 12 9 4 10 . Attach 40 | . . 2 . . 1 2 4 4 7 1 7 2 5 1 4 Detach 21 | . . . . . 1 1 2 2 3 2 2 1 6 1 . Swap 133 | . 3 . . . 13 12 21 7 18 12 14 23 2 7 1 Drop 143 | . 1 1 . 2 23 20 4 7 34 6 7 13 14 9 2 Fire 694 | . 33 27 . 11 23 71 56 27 100 52 85 79 13 81 36 Melee 194 | . . . . . 30 11 28 55 59 6 . . . . 5 Ram . | . . . . . . . . . . . . . . . . Kick 11 | . 1 1 . 1 1 . 1 . 1 . . 1 3 1 . Crush 6 | . . . . . . . . . . . 5 . . 1 . Escape Stasis 18 | . . . . . . 2 . 11 . . . . . 5 . Rewire 48 | . . . . . . . 7 23 . . . . 17 . 1 Trap 34 | . . . . . 1 1 . 32 . . . . . . . Miscellaneous . | . . . . . . . . . . . . . . . . Route ------- -11/Scrapyard -10/Materials (discovered 3 exits: [*Mat x2] / *Min) -10/Mines (discovered 2 exits: [*Mat] / *Exi) -10/Exiles -9/Mines (discovered 2 exits: *Mat x2) -8/Materials (discovered 4 exits: Fac x3 / Gar) -8/Garrison (discovered 3 exits: *Mat x3) -8/Materials (discovered 2 exits: *Fac / Gar) -8/Garrison (discovered 3 exits: *Fac x3) -7/Factory (discovered 6 exits: [*Fac x3] / *Sto / Low x2) -7/Waste -7/Factory (discovered 3 exits: *Sto / Low x2) -7/Storage -7/Recycling -5/Factory (discovered 4 exits: [*Fac x2] / [*Upp] / Gar) -5/Garrison History --------- Turn | Location | Event 31 | -11/Scrapyard | Discovered new exit (range 15) 54 | -11/Scrapyard | Entered Materials 242 | -10/Materials | Discovered new exit (range 3) 269 | -10/Materials | Identified exit to Mines 269 | -10/Materials | Central database locked down 303 | -10/Materials | Build established: Mutant 537 | -10/Materials | Discovered new exit (range 3) 982 | -10/Materials | Entered Mines 1495 | -10/Mines | Learned location of 1 exit from Materials 1577 | -10/Mines | Discovered new exit (range 11) 1722 | -10/Mines | Deemed a non-threat by the Exiles lab entrance 1723 | -10/Mines | Discovered new exit (range 5) 1728 | -10/Mines | Entered Exiles 1763 | -10/Exiles | Met 8R-AWN 1782 | -10/Exiles | Met EX-HEX 1815 | -10/Exiles | Met EX-BIN 1830 | -10/Exiles | Aligned with FarCom system 1831 | -10/Exiles | Given EX-Vault access code 1862 | -10/Exiles | Opened EX-Vault 1872 | -10/Exiles | Found Longsword +1 1898 | -10/Exiles | Warned to stay clear of 0b10 Research branches 1912 | -10/Exiles | Exiles lab attacked by MAIN.C 2009 | -10/Exiles | Discovered new exit (range 15) 2027 | -10/Exiles | Left Exiles lab with Longsword +1 2027 | -10/Exiles | Entered Mines 2042 | -9/Mines | Found a hidden stash of uninstalled traps 2123 | -9/Mines | Met a Derelict bent on vengeance 2174 | -9/Mines | Discovered new exit (range 5) 2326 | -9/Mines | Learned location of 2 exits from Materials 2444 | -9/Mines | Discovered new exit (range 5) 2463 | -9/Mines | Entered Materials 2463 | -8/Materials | Evolved 4 slots: Propulsion x2, Utility x2 2464 | -8/Materials | Identified exit to Factory 2853 | -8/Materials | Build established: Scavenger-Mutant 2934 | -8/Materials | Lost 3 parts (2n1u) 3383 | -8/Materials | Identified exit to Garrison 3383 | -8/Materials | Entered Garrison 3401 | -8/Garrison | Learned Materials security intel 3443 | -8/Garrison | Triggered checkpoint 3453 | -8/Garrison | Garrison Relay disabled 3532 | -8/Garrison | Triggered checkpoint 3564 | -8/Garrison | Build established: Mutant 4054 | -8/Garrison | Discovered new exit (range 14) 4123 | -8/Garrison | Installed Relay Interface Framework 4220 | -8/Garrison | Triggered checkpoint 4299 | -8/Garrison | Discovered new exit (range 68) 4299 | -8/Garrison | Discovered new exit (range 65) 4299 | -8/Garrison | Discovered new exit (range 25) 4309 | -8/Garrison | Triggered checkpoint 4350 | -8/Garrison | Garrison Relay disabled 4397 | -8/Garrison | Triggered checkpoint 4539 | -8/Garrison | Build established: Scavenger-Mutant 4786 | -8/Garrison | Entered Materials 4836 | -8/Materials | Repaired Insulated Plating 4876 | -8/Materials | Build established: Mutant 5075 | -8/Materials | Discovered exit to Factory (range 6) 5720 | -8/Materials | Build established: Hacker-Mutant 5839 | -8/Materials | Core integrity fell below 50% 5885 | -8/Materials | Lost 4 parts (1p1u2w) 5990 | -8/Materials | Identified exit to Garrison 5992 | -8/Materials | Entered Garrison 6128 | -8/Garrison | Triggered checkpoint 6214 | -8/Garrison | Garrison Relay disabled 6341 | -8/Garrison | Lost 3 parts (1n1u1w) 6396 | -8/Garrison | Triggered checkpoint 6498 | -8/Garrison | Discovered exit to Factory (range 10) 6582 | -8/Garrison | Triggered checkpoint 6597 | -8/Garrison | Build established: Scavenger-Mutant 6659 | -8/Garrison | Triggered checkpoint 6723 | -8/Garrison | Discovered exit to Factory (range 87) 6723 | -8/Garrison | Discovered exit to Factory (range 76) 6723 | -8/Garrison | Discovered exit to Factory (range 12) 6854 | -8/Garrison | Triggered checkpoint 6880 | -8/Garrison | Triggered checkpoint 7081 | -8/Garrison | Expanded RIF knowledge: Watcher Feeds 7218 | -8/Garrison | Garrison Relay disabled 7339 | -8/Garrison | Entered Factory 7339 | -7/Factory | Accompanied by 1 ally 7339 | -7/Factory | Evolved 2 slots: Utility x1, Weapon x1 7801 | -7/Factory | Allied Derelicts emerged from ambush trap array 7811 | -7/Factory | Build established: Scavenger-Tank 8010 | -7/Factory | Lost 3 parts (2n1u) 8290 | -7/Factory | Fabricated Adv. Plasma Cannon? 8318 | -7/Factory | Build established: Mutant 8342 | -7/Factory | Fabricated Adv. Hacking Suite? 8674 | -7/Factory | Discovered new exit (range 12) 9045 | -7/Factory | Build established: Skirmisher 9217 | -7/Factory | Discovered new exit (range 16) 9430 | -7/Factory | Found Powered Armor 9434 | -7/Factory | Found Powered Armor 9437 | -7/Factory | Found Powered Armor 9854 | -7/Factory | Identified exit to Storage 9854 | -7/Factory | Identified exit to Lower Caves 10184 | -7/Factory | Build established: Tank 10526 | -7/Factory | Garrison activated, responded to threat 11168 | -7/Factory | Discovered new exit (range 5) 11498 | -7/Factory | Build established: Mutant 11547 | -7/Factory | Discovered new exit (range 13) 11862 | -7/Factory | Sucked down chute 11862 | -7/Factory | Entered Waste 11877 | -7/Waste | EMP discharged 11877 | -7/Waste | System corruption reached 10% 11910 | -7/Waste | Spotted C-40 Crusher 11977 | -7/Waste | EMP discharged 12000 | -7/Waste | Crushed by falling debris 12017 | -7/Waste | Destroyed C-40 Crusher 12018 | -7/Waste | Crushed by falling debris 12044 | -7/Waste | Spotted C-40 Crusher 12046 | -7/Waste | Destroyed C-40 Crusher 12060 | -7/Waste | Spotted C-40 Crusher 12062 | -7/Waste | Spotted C-40 Crusher 12077 | -7/Waste | EMP discharged 12170 | -7/Waste | Destroyed C-40 Crusher 12177 | -7/Waste | EMP discharged 12177 | -7/Waste | System corruption reached 30% 12216 | -7/Waste | Spotted C-40 Crusher 12224 | -7/Waste | Destroyed C-40 Crusher 12277 | -7/Waste | EMP discharged 12301 | -7/Waste | Crushed by Compactor (1 part destroyed, 2 dropped) 12314 | -7/Waste | Destroyed C-40 Crusher 12337 | -7/Waste | Spotted C-40 Crusher 12349 | -7/Waste | Destroyed C-40 Crusher 12367 | -7/Waste | Found Damper Plating 12377 | -7/Waste | EMP discharged 12477 | -7/Waste | EMP discharged 12577 | -7/Waste | EMP discharged 12591 | -7/Waste | Discovered new exit (range 12) 12617 | -7/Waste | Build established: Skirmisher 12628 | -7/Waste | Entered Factory 13053 | -7/Factory | Build established: Tank 13694 | -7/Factory | Repaired Gatling Laser 14003 | -7/Factory | Build established: Scavenger-Skirmisher 14911 | -7/Factory | Build established: Skirmisher 15467 | -7/Factory | Entered Storage 15520 | -7/Storage | Repaired Powered Armor 15821 | -7/Storage | Core integrity fell below 50% 15825 | -7/Storage | Lost 3 allies 16076 | -7/Storage | Build established: Tank 16404 | -7/Storage | Repaired Broken Gatling Laser 16696 | -7/Storage | Used back door to open Recycling access 16696 | -7/Storage | Discovered new exit (range 5) 16936 | -7/Storage | Entered Recycling 16937 | -7/Recycling | Joined Warlord attack on 0b10 via Recycling 17163 | -7/Recycling | Discovered new exit (range 16) 17234 | -7/Recycling | Build established: Mutant 17283 | -7/Recycling | Scanned before Scraplab entrance 17300 | -7/Recycling | Entered Scraplab 17338 | -7/Recycling | Angered Scraplab inhabitants 17381 | -7/Recycling | Found Prototype Device 17381 | -7/Recycling | Identified Scrap Engine 17648 | -7/Recycling | Build established: Scavenger-Skirmisher 18069 | -7/Recycling | Entered Factory 18069 | -5/Factory | Accompanied by 1 ally 18069 | -5/Factory | Evolved 4 slots: Power x1, Utility x3 18467 | -5/Factory | Build established: Hacker-Skirmisher 18779 | -5/Factory | Repaired Powered Armor 18824 | -5/Factory | Repaired Powered Armor 18869 | -5/Factory | Repaired Gatling Laser 18920 | -5/Factory | Discovered new exit (range 5) 19175 | -5/Factory | Build established: Hacker-Tank 19232 | -5/Factory | Garrison activated, responded to threat 19282 | -5/Factory | Destroyed 7 combat bots 19822 | -5/Factory | Discovered new exit (range 14) 20007 | -5/Factory | Build established: Hacker-Skirmisher 20314 | -5/Factory | Discovered new exit (range 6) 20321 | -5/Factory | Build established: Hacker-Tank 20712 | -5/Factory | Identified exit to Garrison 20713 | -5/Factory | Entered Garrison 20740 | -5/Garrison | Spotted B-75 Beast 20770 | -5/Garrison | Destroyed B-75 Beast 20821 | -5/Garrison | Lost 7 parts (1p1n2u3w) 20823 | -5/Garrison | Destroyed 7 combat bots 20863 | -5/Garrison | Learned Factory security intel 20953 | -5/Garrison | Triggered checkpoint 20980 | -5/Garrison | Spotted Striker 20981 | -5/Garrison | Spotted Striker 21012 | -5/Garrison | Self-destructed Last Messages --------------- (Destroy). 20922_ Destroyed Wave Gun. 20925_ Slug penetrates Y-64 Sentinel. 20925_ Y-64 Sentinel destroyed. 20927_ Acquired 20 matter. 20929_ The unstable cave ceiling collapses. 20930_ Arm. Scrap Engine consumes Imp. Medium Armor Plating. 20931_ Arm. Scrap Engine consumes Neutrino Core. 20953_ Beams of light sweep through the air. An alarm sounds. 20977_ Triggered Alarm Trap. 20977_ An alarm sounds. 20982_ Sentinel 6a destroyed. 20999_ Flexi-carbon Leg destroyed. 20999_ Imp. Heavy Armor Plating destroyed. 21007_ Power failure, Neutrino-Fusion Core shutdown. 21010_ Arm. Scrap Engine reinforces its armored shell (+59). Map ----- +----------------------------------------------------+ | | | | | | | | | | | | | | | | | ?????????????????????????????????????????????????? | | ?????????????????????????????????????????????????? | | ?????????????????????????????????????????????????? | | ?????????????????????????????????????????????????? | | ?????????????????????????????????????????????????? | | ?????????????????????????????????????????????????? | | ???????????????????????###???????????????????????? | | ???????????????????????" "???????????????????????? | | ??????????????????????? ???????????????????????? | | ???????????????????????" "???????????????????????? | | ???????????????????????" "???????????????????????? | | ??????????????????????? ???????????????????????? | | ???????????????????????" "???????????????????????? | | ???????????????????????# #???????????????????????? | | ???????????????????????#+#???????????????????????? | | ???????????????????????#K###?????????????????????? | | ???????????????????????#K#"#?????????????????????? | | ??????????????##! ##### @"#?????????????????????? | | ??????? ! ! *%%"#?????????????????????? | | ??????????????##! #####%!"#?????????????????????? | | ???????????????????????#%#"#?????????????????????? | | ???????????????????????# ###?????????????????????? | | ???????????????????????# #???????????????????????? | | ?????????????????####??# #???????????????????????? | | ?????????????????# #??# #???????????????????????? | | ?????????????????# #### #???????????????????????? | | ##################""## #???????????????????????? | | " # #???????????????????????? | | "T"########## #"## # #???????????????????????? | | ####?#####??# # [% ### #???????????????????????? | | ????## ####"! #### #???????????????????????? | | ????# %! % #### #???????????????????????? | | ????# % ## #???????????????????????? | | ????# ## #???????????????????????? | | ????## #### # %% #???????????????????????? | | ?????#####??# # ## # ####???????????????????????? | | ????????????# # # #???????????????????????? | | ????????????# ### #??????????????????????? | | ????????????# ?????????????????????? | | ????????????##### ## # ##?????????????????????? | | ????????????????# ### #??????????????????????? | | ????????????????## # ## #??????????????????????? | +----------------------------------------------------+ Best States ------------- Heat Dissipation 67 Energy Generation 34 Energy Capacity 513 Matter Stores 300 Matter Capacity 300 Sight Range 16 Robot Scan Range 14 Terrain Scan Density 10 ECM Strength 1 Armor Coverage 1600 Resistance: TH 25 Resistance: EM 90 Core Shielding 20 Weapon Shielding 66 Evasion (%) 57 Recoil Reduction 4 Salvage Targeting 2 Offensive Hacking 20 Defensive Hacking 12 Relay Coupler Types 2 Relay Coupler Value 21 Authchip Count 3 Item Schematics ----------------- Adv. Hacking Suite | -8/Materials | Scanalyzed Adv. Plasma Cannon | -8/Materials | Scanalyzed System Restoration Module | -8/Materials | Scanalyzed Gauss Cannon | -7/Factory | Extracted Hvy. Flail | -7/Factory | Extracted Hvy. EM Shotgun | -7/Factory | Extracted Imp. Titanium Leg | -7/Factory | Extracted Robot Schematics ------------------ B-36 Bruiser | -7/Factory | Hacked Fabricated ------------ Adv. Plasma Cannon | x2 | -7/Factory Adv. Hacking Suite | x1 | -7/Factory Alien Tech Used ----------------- None Achievements -------------- None Challenges ------------ None Game ------ Seed PersonalEfficiencyMonowheel Manual? 0 Play Time 03:22:09 Cumulative 110.2 hours Start 2024.10.07 @ 00:11:47 End 2024.10.07 @ 18:18:55 Sessions 7 Manual Loads 0 Difficulty Rogue Special Mode None Game No. 68 Rogue 32 Adventurer 36 Explorer 0 Win Type - Total 2 Types 2/0/0/0/0/0/0/0/0 Lore% 51 Gallery% 56 Achievement% 51 Wizard Run 0 Options --------- Layout 1 ASCII 0 Keyboard 0 Movement Numpad Keybinds 0 Fullscreen 1 Font 48/Smallcaps Map View 50x35 Zoom Use 0% Tactical HUD 1 Map Filters NONE Filters NONE Steam 1 RUN: 29b0dff5-42f5-4bcb-ab06-d2abe38af72d